{"text_format":"1","workbook":"xlsx","n_sheets":31,"sheets":["Forside","Indholdsfortegnelse","Intro til tal","Overblik","Asyl - intro","Asyl - hovedtal","Asyl - ansøgninger","Asyl - UMI_ansøgninger","Asyl - visitering(1)","Asyl - visitering(2)","Somalia","Familiesammenføring intro (1)","Fam - nøgletal (2)","Fam - ansøgninger (3)","Fam - (4)","Fam - EU (5)","TUB - intro","TUB - hovedtal","TUB - hovedtal (2)","Visum - intro","Visum - hovedtal","Erhverv - intro ","Erhverv - år","Erhverv - måneder","Erhverv - Nationaliteter1","Erhverv - nationaliteter2","Studie - intro","Studie - hovedtal","Studie - nationaliteter","EU-EØS - intro","EU-EØS -hovedtal"],"not_rendered":{"charts":0,"images":1,"macros":1,"external_links":0,"defined_names":39,"comments":0,"pivot_tables":0},"unopened":[],"bounds":{"document_bytes":16777216,"sheet_cells":100000,"rows_first":2000,"rows_last":500,"rows_between":2000,"halvings":0,"cell_chars":16384,"cell_head_chars":4096},"cells_cut":0,"cells_raw":0,"read":"whole","date_system":"1900"}

{"sheet":"Forside","index":0,"n_rows":24,"n_cols":17,"rows_kept":24,"cut":false,"hidden":false,"merged":[[12,0,13,13],[23,0,23,13],[24,0,24,13]]}
[null,null,null,null,null,null,null,null,null,null,null,null,null,null,null,"Indtast","31.01.2019"]
[null,null,null,null,null,null,null,null,null,null,null,null,null,null,null,"Gå til \"Intro til tal\""]
[null,null,null," ",null,null,null,null,null,null,null,null,null,null,null,"Tryk på \"Dato\"-knappen"]
[]
[]
[]
[]
[]
[]
[]
[]
[]
[{"$f":"\"Tal på udlændingeområdet\n  pr.\"&\" \"&Forside!Q1&\"\"","v":"Tal på udlændingeområdet\n  pr. 31.01.2019"}]
[]
[]
[]
[]
[]
[]
[]
[]
[]
[]
["Månedstallene er opdateret af Udlændingestyrelsen. Tallene er foreløbige og der kan forekomme statistiske efterkorrektioner ved de følgende opgørelser."]

{"sheet":"Indholdsfortegnelse","index":1,"n_rows":41,"n_cols":14,"rows_kept":41,"cut":false,"hidden":false,"merged":[]}
[]
[null,"Indholdsfortegnelse"]
[]
[null,"Generel introduktion til tal på udlændingeområdet",null,null,null,null,null,null,null,null,null,null,null,1]
[null,"Overblik over alle meddelte opholdstilladelser mv.",null,null,null,null,null,null,null,null,null,null,null,2]
[]
[null,"Asyl mv."]
[null,"Introduktion til asylområdet mv.",null,null,null,null,null,null,null,null,null,null,null,3]
[null,"Hovedtal på asylområdet mv.",null,null,null,null,null,null,null,null,null,null,null,4]
[null,"Asylansøgninger",null,null,null,null,null,null,null,null,null,null,null,"5-6"]
[null,"Visitering",null,null,null,null,null,null,null,null,null,null,null,"7-8"]
[null,"Afgørelser i sager om forlængelse og inddragelse af opholdstilladelse for somaliere ",null,null,null,null,null,null,null,null,null,null,null,"9"]
[]
[null,"Familiesammenføring mv."]
[null,"Introduktion til familiesammenføringsområdet mv.",null,null,null,null,null,null,null,null,null,null,null,10]
[null,"Hovedtal vedr. familiesammenføring mv.",null,null,null,null,null,null,null,null,null,null,null,11]
[null,"Ansøgninger om familiesammenføring",null,null,null,null,null,null,null,null,null,null,null,12]
[null,"Antal afgørelser vedr. ægtefællesammenføring, faste samlevere",null,null,null,null,null,null,null,null,null,null,null,13]
[null,"Antal afgørelser og ansøgninger vedr. familiesammenføring efter EU-reglerne, hvor referencen er dansk statsborger",null,null,null,null,null,null,null,null,null,null,null,14]
[]
[null,"Permanent ophold"]
[null,"Introduktion til permanent ophold",null,null,null,null,null,null,null,null,null,null,null,15]
[null,"Hovedtal vedr. permanent ophold",null,null,null,null,null,null,null,null,null,null,null,"16-17"]
[]
[null,"Visum"]
[null,"Introduktion til visumområdet",null,null,null,null,null,null,null,null,null,null,null,18]
[null,"Hovedtal på visumområdet",null,null,null,null,null,null,null,null,null,null,null,19]
[]
[null,"Erhverv"]
[null,"Introduktion til erhvervsområdet ",null,null,null,null,null,null,null,null,null,null,null,20]
[null,"Hovedtal på erhvervsområdet",null,null,null,null,null,null,null,null,null,null,null,"21-23"]
[null,"Opholdstilladelser på erhvervsområdet ",null,null,null,null,null,null,null,null,null,null,null,24]
[]
[null,"Studie mv."]
[null,"Introduktion til studieområdet mv.",null,null,null,null,null,null,null,null,null,null,null,25]
[null,"Hovedtal på studieområdet mv.",null,null,null,null,null,null,null,null,null,null,null,26]
[null,"Opholdstilladelser på studieområdet mv. ",null,null,null,null,null,null,null,null,null,null,null,27]
[]
[null,"EU/EØS"]
[null,"Introduktion til EU/EØS",null,null,null,null,null,null,null,null,null,null,null,28]
[null,"Hovedtal vedr. EU/EØS",null,null,null,null,null,null,null,null,null,null,null,29]

{"sheet":"Intro til tal","index":2,"n_rows":11,"n_cols":19,"rows_kept":11,"cut":false,"hidden":false,"merged":[]}
[]
[]
[]
[]
[]
[]
[]
[]
[]
[]
[null,null,null,null,null,null,null,null,null,null,null,null,null,null,null,null,null,null," "]

{"sheet":"Overblik","index":3,"n_rows":33,"n_cols":19,"rows_kept":33,"cut":false,"hidden":false,"merged":[[1,0,2,14],[3,0,4,14],[28,0,28,14],[30,0,30,14],[6,2,6,13],[6,14,7,14],[6,1,7,1]]}
[null,null,null,null,null,null,null,null,null,null," ",null,null," "]
[" "]
[]
["Tabel 1: Overblik over alle meddelte opholdstilladelser mv. "]
[]
[]
["Periode","I alt\n2018",2019,null,null,null,null,null,null,null,null,null,null,null,{"$f":"\"2019\ni alt pr.\"&\" \n\"&Forside!Q1&\"\"","v":"2019\ni alt pr. \n31.01.2019"}]
["Kategori",null,"jan","feb","mar","apr","maj","jun","jul","aug","sep","okt","nov","dec"]
["Asyl mv. (A) ",1652,102,null,null,null,null,null,null,null,null,null,null,null,{"$f":"SUM(C9:N9)","v":102}]
["Flygtningestatus *",1621,101,null,null,null,null,null,null,null,null,null,null,null,101]
["Andet grundlag, herunder humanitære opholdstilladelser",31,1,null,null,null,null,null,null,null,null,null,null,null,1]
["Familiesammenføring mv. (B)",5233,{"$f":"SUM(C13+C15)","v":334},null,null,null,null,null,null,null,null,null,null,null,334,null,null," "]
["Familiesammenføring",4602,309,null,null,null,null,null,null,null,null,null,null,null,309]
["- heraf ægtefæller/faste samlevere",3225,245,null,null,null,null,null,null,null,null,null,null,null,245]
["Øvrige opholdssager (bl.a. adoptioner)",631,25,null,null,null,null,null,null,null,null,null,null,null,25]
["Erhverv (E)",14353,1125,null,null,null,null,null,null,null,null,null,null,null,{"$f":"SUM(C16:N16)","v":1125}," "]
["- heraf fast-track, beløbsordningen, positivlisten og forskere og undervisere",6209,480,null,null,null,null,null,null,null,null,null,null,null,480]
["- heraf greencard og etableringskort",412,44,null,null,null,null,null,null,null,null,null,null,null,44," ",null,null," "]
["Studie mv.  (F)",15819,894,null,null,null,null,null,null,null,null,null,null,null,{"$f":"SUM(C19:N19)","v":894}]
["- heraf uddannelse inkl. PhD-uddannelse",8857,353,null,null,null,null,null,null,null,null,null,null,null,353," "]
["- heraf au pair",1310,72,null,null,null,null,null,null,null,null,null,null,null,72," "]
["- heraf praktikanter",2250,192,null,null,null,null,null,null,null,null,null,null,null,192]
["EU/EØS (G)",39075,2967,null,null,null,null,null,null,null,null,null,null,null,2967]
["- heraf lønarbejde",20220,1540,null,null,null,null,null,null,null,null,null,null,null,1540]
["- heraf uddannelse",9150,600,null,null,null,null,null,null,null,null,null,null,null,600,null,null," "]
[" -heraf til personer med tilstrækkelige midler",4868,443,null,null,null,null,null,null,null,null,null,null,null,{"$f":"SUM(C26:N26)","v":443}]
["I alt (A+B+E+F+G)",76132,{"$f":"SUM(C9+C12+C16+C19+C23)","v":5422},null,null,null,null,null,null,null,null,null,null,null,{"$f":"O9+O12+O16+O19+O23","v":5422}]
[]
[" "]
[null,null,null,null,null," ",null,null," ",null,null," "]
[]
[]
[null,null,null,null,null,null,null,null,null,null,null,null,null,null,null,null,null,null," "]

{"sheet":"Asyl - intro","index":4,"n_rows":5,"n_cols":1,"rows_kept":5,"cut":false,"hidden":false,"merged":[[4,0,5,14]]}
[]
[]
[]
[]
["Asyl mv. (A) "]

{"sheet":"Asyl - hovedtal","index":5,"n_rows":39,"n_cols":18,"rows_kept":39,"cut":false,"hidden":false,"merged":[[35,11,35,13],[45,0,47,14],[37,2,37,4],[37,5,37,7],[37,8,37,10],[37,11,37,13],[38,2,38,4],[38,5,38,7],[38,8,38,10],[38,11,38,13],[44,0,44,14],[34,2,34,4],[34,5,34,7],[35,2,35,4],[35,5,35,7],[35,8,35,10],[34,8,34,10],[32,11,32,13],[33,2,33,4],[33,5,33,7],[33,8,33,10],[33,11,33,13],[34,11,34,13],[29,2,29,4],[29,5,29,7],[29,8,29,10],[29,11,29,13],[30,2,30,4],[30,5,30,7],[30,8,30,10],[30,11,30,13],[31,2,31,4],[31,5,31,7],[31,8,31,10],[31,11,31,13],[32,2,32,4],[32,5,32,7],[32,8,32,10],[26,14,27,14],[27,2,27,4],[27,5,27,7],[27,8,27,10],[27,11,27,13],[26,2,26,4],[26,5,26,7],[26,8,26,10],[26,11,26,13],[23,0,24,14],[7,1,8,1],[21,0,22,14],[4,0,5,14],[7,2,7,13],[20,0,20,14],[19,2,19,13]]}
[]
[]
[]
[null,null,null,null,null,null,null,null,null,null,null,null,null,null,null,null,null," "]
["(A)   Tabel 1: Aktuelle hovedtal på asylområdet mv."]
[]
[]
["Periode","I alt\n2018",2019,null,null,null,null,null,null,null,null,null,null,null,2019]
["Kategori",null,"jan","feb","mar","apr","maj","jun","jul","aug","sep","okt","nov","dec",{"$f":"\"i alt pr.\"&\" \n\"&Forside!Q1&\"\"","v":"i alt pr. \n31.01.2019"}]
["Asylområdet generelt"]
["Antal asylansøgninger (bruttoansøgertallet)",3523,223,null,null,null,null,null,null,null,null,null,null,null,{"$f":"SUM(C11:N11)","v":223}]
["Antal opholdstilladelser meddelt på asylområdet mv. (note 1) (alle sagstyper, alle myndigheder)",1652,102,null,null,null,null,null,null,null,null,null,null,null,{"$f":"SUM(C12:N12)","v":102}]
[" - heraf konventionsstatus",1028,59,null,null,null,null,null,null,null,null,null,null,null,{"$f":"SUM(C13:N13)","v":59}]
[" - heraf beskyttelsesstatus/ de facto status",187,20,null,null,null,null,null,null,null,null,null,null,null,20]
[" - heraf midlertidig beskyttelsesstatus",406,22,null,null,null,null,null,null,null,null,null,null,null,22]
["Antal flygtninge fordelt til kommunerne",844,56,null,null,null,null,null,null,null,null,null,null,null,56]
["Antal indkvarterede på asylcentre **",0]
["Tal for Udlændingestyrelsens del af asylsagsbehandlingen"]
["Antal asylansøgninger, der er overgået til realitetsbehandling (registreringstallet)",2571,233,null,null,null,null,null,null,null,null,null,null,null,{"$f":"SUM(C19:N19)","v":233}]
["Anerkendelsesprocenten i asylsager\n i Udlændingestyrelsen",0.56000000000000005,0.34]
["Note 3: Lov nr. 153 af 18. februar 2015 om midlertidig beskyttelse mv., der trådte i kraft 20. februar 2015, finder udelukkende anvendelse på ansøgninger om opholdstilladelse, som er indgivet fra og med den 14. november 2014."]
["Note: Antallet af fjernregistrerede asylansøgere omfatter personer, der allerede har et opholdsgrundlag i Danmark, og personer der umiddelbart op til asylansøgningen har haft et opholdsgrundlag, som er bortfaldet eller inddraget. Andelen af de såkaldte fjernregistrerede beregnes ikke som en andel af bruttoansøgertallet, men derimod som en andel af antallet af registrerede asylsøgninger i Udlændingestyrelsen (EstherH). Andelen af fjernregistrerede var henholdsvis 25% i 2017 og 28% i 2018, mens andelen for asylansøgninger indgivet i 2019 indtil videre er ca. 37%."]
[]
["(A)   Tabel 2: Historiske hovedtal på asylområdet mv."]
[]
[]
["Periode",null,null,null,null,null,null,null,null,null,null,null,null,null,{"$f":"\" i alt pr.\"&\" \n\"&Forside!Q1&\"\"","v":" i alt pr. \n31.01.2019"}]
["Kategori",2014,2015,null,null,2016,null,null,2017,null,null,2018]
["Asylområdet generelt"]
["Antal asylansøgninger (bruttoansøgertallet)",14792,21316,null,null,6266,null,null,3500,null,null,3523,null,null,{"$f":"O11","v":223}]
["Antal opholdstilladelser meddelt på asylområdet mv. \n(alle sagstyper, alle myndigheder)",6104,10849,null,null,7493,null,null,2750,null,null,1652,null,null,102]
[" - heraf konventionsstatus",3913,7810,null,null,4478,null,null,1525,null,null,1028,null,null,59]
[" - heraf beskyttelsesstatus/ de facto status",1774,1325,null,null,406,null,null,392,null,null,187,null,null,20]
[" - heraf midlertidig beskyttelsesstatus",null,1068,null,null,2475,null,null,789,null,null,406,null,null,22]
["Antal flygtninge fordelt til kommunerne",6048,10592,null,null,7172,null,null,2097,null,null,844,null,null,56]
["Antal indkvarterede på asylcentre **",null,null,null,null,null,null,null,null,null,null,null,null,null,0]
["Tal for Udlændingestyrelsens del af asylsagsbehandlingen"]
["Antal asylansøgninger, der er overgået til realitetsbehandling (registreringstallet)",10192,10472,null,null,12722,null,null,2411,null,null,2571,null,null,{"$f":"O19","v":233}]
["Anerkendelsesprocenten i asylsager\n i Udlændingestyrelsen",0.74,0.85,null,null,0.72,null,null,0.36,null,null,0.56000000000000005,null,null,{"$f":"C20","v":0.34}]

{"sheet":"Asyl - ansøgninger","index":6,"n_rows":44,"n_cols":19,"rows_kept":44,"cut":false,"hidden":false,"merged":[[40,13,40,14],[7,8,8,8],[7,9,8,9],[43,0,43,16],[31,7,32,13],[34,2,35,2],[34,3,35,3],[34,4,35,4],[34,5,35,5],[31,0,32,6],[34,1,35,1],[34,6,35,6],[39,13,39,14],[34,7,35,7],[34,8,35,8],[34,9,35,9],[34,10,35,10],[31,14,32,14],[34,11,35,11],[34,12,35,12],[34,13,35,14],[36,13,36,14],[37,13,37,14],[38,13,38,14],[4,0,5,6],[4,7,5,13],[4,14,5,14],[7,1,8,1],[7,2,8,2],[7,3,8,3],[7,10,8,10],[7,11,8,11],[7,12,8,12],[7,4,8,4],[7,5,8,5],[7,6,8,6],[7,7,8,7]]}
[]
[]
[]
[]
["(A)   Tabel 3: Aktuelle månedlige asylansøgertal *"]
[]
[]
["Måned","jan","feb","mar","apr","maj","jun","jul","aug","sep","okt","nov","dec","I alt","I alt"]
["Nationalitet",null,null,null,null,null,null,null,null,null,null,null,null,{"$f":"\"pr.\"&\" \"&Forside!Q1&\"\"","v":"pr. 31.01.2019"},2018]
["Syrien",40,null,null,null,null,null,null,null,null,null,null,null,{"$f":"SUM(B10:M10)","v":40},598]
["Eritrea",38,null,null,null,null,null,null,null,null,null,null,null,{"$f":"SUM(B11:M11)","v":38},656]
["Marokko",8,null,null,null,null,null,null,null,null,null,null,null,{"$f":"SUM(B12:M12)","v":8},181]
["Afghanistan",3,null,null,null,null,null,null,null,null,null,null,null,{"$f":"SUM(B13:M13)","v":3},114]
["Iran",11,null,null,null,null,null,null,null,null,null,null,null,{"$f":"SUM(B14:M14)","v":11},196]
["Irak",6,null,null,null,null,null,null,null,null,null,null,null,{"$f":"SUM(B15:M15)","v":6},117]
["Statsløse",15,null,null,null,null,null,null,null,null,null,null,null,15,151]
["Somalia",17,null,null,null,null,null,null,null,null,null,null,null,17,101]
["Algeriet",5,null,null,null,null,null,null,null,null,null,null,null,{"$f":"SUM(B18:M18)","v":5},73]
["Libyen",4,null,null,null,null,null,null,null,null,null,null,null,{"$f":"SUM(B19:M19)","v":4},42]
["Georgien",8,null,null,null,null,null,null,null,null,null,null,null,8,396]
["Albanien",12,null,null,null,null,null,null,null,null,null,null,null,12,77]
["Nigeria",1,null,null,null,null,null,null,null,null,null,null,null,1,28]
["Hviderusland",1,null,null,null,null,null,null,null,null,null,null,null,{"$f":"SUM(B23:M23)","v":1},37]
["Rusland",3,null,null,null,null,null,null,null,null,null,null,null,{"$f":"SUM(B24:M24)","v":3},94]
["Ukraine",6,null,null,null,null,null,null,null,null,null,null,null,{"$f":"SUM(B25:M25)","v":6},49]
["Kosovo",0,null,null,null,null,null,null,null,null,null,null,null,{"$f":"SUM(B26:M26)","v":0},13]
["Serbien",1,null,null,null,null,null,null,null,null,null,null,null,1,12]
["Tyrkiet",1,null,null,null,null,null,null,null,null,null,null,null,1,26,null,null,null," "]
["Øvrige",43,null,null,null,null,null,null,null,null,null,null,null,43,562]
["I alt",{"$f":"SUM(B10:B29)","v":223},null,null,null,null,null,null,null,null,null,null,null,{"$f":"SUM(B30:M30)","v":223},{"$f":"SUM(O10:O29)","v":3523}]
[]
["(A)   Tabel 4: Historiske månedlige asylansøgertal *"]
[]
[]
["Måned","jan","feb","mar","apr","maj","jun","jul","aug","sep","okt","nov","dec","I alt",null,null,null," "]
["År"]
[2014,567,444,507,612,723,1009,1733,2302,3147,1857,1116,775,{"$f":"SUM(B37:M37)","v":14792}]
[2015,647,476,465,564,914,1077,1063,1813,2757,3694,5104,2742,21316,null,null,null," "]
[2016,1644,921,472,401,386,468,405,315,335,350,305,264,6266]
[2017,251,219,272,247,317,309,346,332,331,316,315,245,3500]
[2018,289,271,270,241,283,251,351,369,374,342,305,177,{"$f":"SUM(B41:M41)","v":3523}]
[2019,{"$f":"B30","v":223},null,null,null,null,null,null,null,null,null,null,null,null,{"$f":"SUM(B42:M42)","v":223}]
[]
["* Tallene for 2013-2017 er opdateret på baggrund af endelige registreringer i Polsas fra Rigspolitiet. Der tages forbehold for, at der løbende kan forekomme efterkorrektioner til disse tal."]

{"sheet":"Asyl - UMI_ansøgninger","index":7,"n_rows":37,"n_cols":16,"rows_kept":37,"cut":false,"hidden":false,"merged":[[43,0,43,6],[44,0,46,6],[27,1,28,1],[27,2,28,2],[27,3,28,3],[36,0,36,14],[32,13,32,14],[33,13,33,14],[27,10,28,10],[27,11,28,11],[27,12,28,12],[27,13,28,14],[27,6,28,6],[27,7,28,7],[27,8,28,8],[27,9,28,9],[27,4,28,4],[27,5,28,5],[7,11,8,11],[7,12,8,12],[4,0,5,14],[7,1,8,1],[7,2,8,2],[7,3,8,3],[7,4,8,4],[7,5,8,5],[7,6,8,6],[7,7,8,7],[7,10,8,10],[7,8,8,8],[7,9,8,9],[24,0,25,14]]}
[]
[]
[]
[]
["(A)   Tabel 5: Antal asylansøgninger fra uledsagede mindreårige fordelt på de største nationalitetsgrupper *"]
[]
[]
["Måned","jan","feb ","mar","apr","maj","jun","jul","aug","sep","okt","nov","dec","I alt","I alt"]
["Nationalitet",null,null,null,null,null,null,null,null,null,null,null,null,{"$f":"\"pr.\"&\" \n\"&Forside!Q1&\"\"","v":"pr. \n31.01.2019"},2018]
["Marokko",4,null,null,null,null,null,null,null,null,null,null,null,{"$f":"SUM(B10:M10)","v":4},75]
["Afghanistan",1,null,null,null,null,null,null,null,null,null,null,null,{"$f":"SUM(B11:M11)","v":1},23]
["Syrien",3,null,null,null,null,null,null,null,null,null,null,null,{"$f":"SUM(B12:M12)","v":3},17]
["Algeriet",5,null,null,null,null,null,null,null,null,null,null,null,{"$f":"SUM(B13:M13)","v":5},27," "]
["Libyen",0,null,null,null,null,null,null,null,null,null,null,null,0,12]
["Somalia",2,null,null,null,null,null,null,null,null,null,null,null,{"$f":"SUM(B15:M15)","v":2},12]
["Eritrea",1,null,null,null,null,null,null,null,null,null,null,null,{"$f":"SUM(B16:M16)","v":1},19]
["Statsløse",0,null,null,null,null,null,null,null,null,null,null,null,{"$f":"SUM(B17:M17)","v":0},5]
["Irak",0,null,null,null,null,null,null,null,null,null,null,null,{"$f":"SUM(B18:M18)","v":0},7]
["Guinea",0,null,null,null,null,null,null,null,null,null,null,null,0,5]
["Gambia",0,null,null,null,null,null,null,null,null,null,null,null,0,1]
["Ethiopien",0,null,null,null,null,null,null,null," ",null,null,null,0,0," "]
["Øvrige",2,null,null,null,null,null,null,null,null,null,null,null,{"$f":"SUM(B22:M22)","v":2},44," "]
["I alt ",{"$f":"SUM(B10:B22)","v":18},null,null,null,null,null,null,null,null,null,null,null,{"$f":"SUM(B23:M23)","v":18},{"$f":"SUM(O10:O22)","v":247}]
[]
["(A)   Tabel 6: Historiske antal asylansøgninger fra uledsagede mindreårige *"]
[]
[]
["Måned","jan","feb","mar","apr","maj","jun","jul","aug","sep","okt","nov","dec","I alt "]
["År"]
[2014,30,25,35,29,33,51,81,113,177,102,73,69,null,{"$f":"SUM(B30:M30)","v":818}]
[2015,52,46,34,43,80,91,92,154,325,321,511,395,null,{"$f":"SUM(B31:M31)","v":2144}]
[2016,255,132,66,83,103,130,97,80,73,57,53,55,null,{"$f":"SUM(B32:M32)","v":1184}," "]
[2017,34,49,37,29,47,61,49,38,28,32,36,22,{"$f":"SUM(B33:M33)","v":462}]
[2018,27,22,41,10,13,10,11,24,20,22,30,17,{"$f":"SUM(B34:M34)","v":247}]
[2019,{"$f":"B23","v":18},null,null,null,null,null,null,null,null,null,null,null,null,{"$f":"SUM(B35:M35)","v":18}]
[]
["* Tallene for 2013-2017 er opdateret på baggrund af endelige registreringer i Polsas fra Rigspolitiet. Der tages forbehold for, at der løbende kan forekomme efterkorrektioner til disse tal."]

{"sheet":"Asyl - visitering(1)","index":8,"n_rows":61,"n_cols":5,"rows_kept":61,"cut":false,"hidden":false,"merged":[[3,1,4,1],[0,0,1,3],[60,0,62,3],[3,3,4,3],[3,2,4,2]]}
["(A)   Tabel 7: Antal visiteringer af flygtninge fordelt på kommuner og regioner *"]
[]
[]
[null,2018,"Antal visiteringer i \njanuar 2019",{"$f":"\"I alt 2019\npr.\"&\" \"&Forside!Q1&\"\"","v":"I alt 2019\npr. 31.01.2019"}]
["Kommune/Region"]
["Brønderslev Kommune",5,0,0]
["Frederikshavn Kommune",14,0,0]
["Hjørring Kommune",14,1,1]
["Jammerbugt Kommune",11,0,0]
["Læsø Kommune",0,0,0]
["Mariagerfjord Kommune",10,0,0]
["Morsø Kommune",0,0,0]
["Rebild Kommune",7,0,0]
["Thisted Kommune",6,0,0]
["Vesthimmerlands Kommune",9,1,1]
["Aalborg Kommune",66,1,1]
["Region Nordjylland i alt ",142,{"$f":"SUM(C6:C16)","v":3},{"$f":"SUM(D6:D16)","v":3}]
["Favrskov Kommune",10,0,0]
["Hedensted Kommune",11,0,0]
["Herning Kommune",11,0,0]
["Holstebro Kommune",12,0,0]
["Horsens Kommune",5,6,6]
["Ikast-Brande Kommune",4,0,0]
["Lemvig Kommune",2,0,0]
["Norddjurs Kommune",6,0,0]
["Odder Kommune",0,0,0]
["Randers Kommune",25,11,11]
["Ringkøbing-Skjern Kommune",5,0,0]
["Samsø Kommune",0,0,0]
["Silkeborg Kommune",16,1,1]
["Skanderborg Kommune",4,1,1]
["Skive Kommune",13,0,0]
["Struer Kommune",3,0,0]
["Syddjurs Kommune",2,0,0]
["Viborg Kommune",19,0,0]
["Aarhus Kommune",46,1,1]
["Region Midtjylland i alt ",194,{"$f":"SUM(C18:C36)","v":20},{"$f":"SUM(D18:D36)","v":20}]
["Assens Kommune",1,0,0]
["Billund Kommune",0,0,0]
["Esbjerg Kommune",16,1,1]
["Fanø Kommune",1,0,0]
["Fredericia Kommune",1,0,0]
["Faaborg-Midtfyn Kommune",7,0,0]
["Haderslev Kommune",7,0,0]
["Kerteminde Kommune",1,0,0]
["Kolding Kommune",13,1,1]
["Langeland Kommune",1,0,0]
["Middelfart Kommune",5,0,0]
["Nordfyns Kommune",0,0,0]
["Nyborg Kommune",1,1,1]
["Odense Kommune",5,0,0]
["Svendborg Kommune",6,0,0]
["Sønderborg Kommune",5,0,0]
["Tønder Kommune",3,0,0]
["Varde Kommune",5,1,1]
["Vejen Kommune",5,0,0]
["Vejle Kommune",25,0,0]
["Ærø Kommune",1,0,0]
["Aabenraa Kommune",9,1,1]
["Region Syddanmark i alt ",118,{"$f":"SUM(C38:C59)","v":5},{"$f":"SUM(D38:D59)","v":5}," "]
["* Tabellen viser antallet af beslutninger truffet i Udlændingestyrelsen om visitering af flygtninge til en kommune/region. Fra beslutningen om visitering er truffet, går der i gennemsnit 1½ måned før flygtningen ankommer til den pågældende kommune. "]

{"sheet":"Asyl - visitering(2)","index":9,"n_rows":60,"n_cols":4,"rows_kept":60,"cut":false,"hidden":false,"merged":[[7,1,8,1],[4,0,5,3],[59,0,60,3],[7,3,8,3],[7,2,8,2]]}
[]
[]
[]
[]
["(A)   Tabel 7: Antal visiteringer af flygtninge fordelt på kommuner og regioner *"]
[]
[]
[null,2018,"Antal visiteringer i januar 2019",{"$f":"\"I alt 2019\npr.\"&\" \"&Forside!Q1&\"\"","v":"I alt 2019\npr. 31.01.2019"}]
["Kommune/Region"]
["Albertslund Kommune",0,0,0]
["Allerød Kommune",6,0,0]
["Ballerup Kommune",6,0,0]
["Bornholms Regionskommune",9,0,0]
["Brøndby Kommune",0,0,0]
["Dragør Kommune",4,0,0]
["Egedal Kommune",1,0,0]
["Fredensborg Kommune",3,0,0]
["Frederiksberg Kommune",19,0,0]
["Frederikssund Kommune",14,0,0]
["Furesø Kommune",5,0,0]
["Gentofte Kommune",21,0,0]
["Gladsaxe Kommune",9,0,0]
["Glostrup Kommune",2,0,0]
["Gribskov Kommune",11,0,0]
["Halsnæs Kommune",6,0,0]
["Helsingør Kommune",1,0,0]
["Herlev Kommune",2,0,0]
["Hillerød Kommune",5,0,0]
["Hvidovre Kommune",7,1,1]
["Høje-Taastrup Kommune",0,0,0]
["Hørsholm Kommune",6,0,0]
["Ishøj Kommune",0,0,0]
["Københavns Kommune",84,24,24]
["Lyngby-Taarbæk Kommune",15,0,0]
["Rudersdal Kommune",8,1,1]
["Rødovre Kommune",3,0,0]
["Tårnby Kommune",6,0,0]
["Vallensbæk Kommune",0,0,0]
["Region Hovedstaden i alt ",253,{"$f":"SUM(C10:C38)","v":26},{"$f":"SUM(D10:D38)","v":26}]
["Faxe Kommune",4,1,1]
["Greve Kommune",7,0,0]
["Guldborgsund Kommune",13,0,0]
["Holbæk Kommune",19,0,0]
["Kalundborg Kommune",6,0,0]
["Køge Kommune",7,0,0]
["Lejre Kommune",1,0,0]
["Lolland Kommune",6,1,1]
["Næstved Kommune",17,0,0]
["Odsherred Kommune",5,0,0]
["Ringsted Kommune",6,0,0]
["Roskilde Kommune",14,0,0]
["Slagelse Kommune",10,0,0]
["Solrød Kommune",4,0,0]
["Sorø Kommune",5,0,0]
["Stevns Kommune",3,0,0]
["Vordingborg Kommune",10,0,0]
["Region Sjælland i alt ",137,{"$f":"SUM(C40:C56)","v":2},{"$f":"SUM(D40:D56)","v":2}]
["I alt",844,{"$f":"C57+C39+'Asyl - visitering(1)'!C60+'Asyl - visitering(1)'!C37+'Asyl - visitering(1)'!C17","v":56},{"$f":"D57+D39+'Asyl - visitering(1)'!D17+'Asyl - visitering(1)'!D37+'Asyl - visitering(1)'!D60","v":56}]
[]
["* Tabellen viser antallet af beslutninger truffet i Udlændingestyrelsen om visitering af flygtninge til en kommune/region. Fra beslutningen om visitering er truffet, går der i gennemsnit 1½ måned før flygtningen ankommer til den pågældende kommune.  "]

{"sheet":"Somalia","index":10,"n_rows":20,"n_cols":19,"rows_kept":20,"cut":false,"hidden":false,"merged":[[29,0,31,14],[28,0,28,14],[4,0,5,14],[7,1,8,1],[7,2,7,13]]}
[]
[]
[]
[]
["(A)   Tabel 8: Afgørelser i sager om forlængelse og inddragelse af opholdstilladelse for somaliere "]
[]
[]
["Periode","I alt\n2018",2019,null,null,null,null,null,null,null,null,null,null,null,2019]
["Kategori",null,"jan","feb","mar","apr","maj","jun","jul","aug","sep","okt","nov","dec",{"$f":"\"i alt pr.\"&\"\n\"&Forside!Q1&\"\"","v":"i alt pr.\n31.01.2019"}]
["Antal afgørelser i sager om forlængelse og inddragelse af opholdstilladelse for somaliere ",396,1,null,null,null,null,null,null,null,null,null,null,null,{"$f":"SUM(C10:N10)","v":1}]
["- heraf asyl",222,0,null,null,null,null,null,null,null,null,null,null,null,{"$f":"SUM(C11:N11)","v":0}]
["       - heraf inddragelse",103,0,null,null,null,null,null,null,null,null,null,null,null,{"$f":"SUM(C12:N12)","v":0}]
["       - heraf undladelse af inddragelse ",48,0,null,null,null,null,null,null,null,null,null,null,null,0]
["       - heraf forlængelse",32,1,null,null,null,null,null,null,null,null,null,null,null,1]
["       - heraf afslag på forlængelse",39,0,null,null,null,null,null,null,null,null,null,null,null,{"$f":"SUM(C15:N15)","v":0},null,null,null," "]
["- heraf familiesammenføring mv.",174,0,null,null,null,null,null,null,null,null,null,null,null,{"$f":"SUM(C16:N16)","v":0}]
["       - heraf inddragelse",59,0,null,null,null,null,null,null,null,null,null,null,null,{"$f":"SUM(C17:N17)","v":0}]
["       - heraf undladelse af inddragelse ",24,0,null,null,null,null,null,null,null,null,null,null,null,{"$f":"SUM(C18:N18)","v":0}]
["       - heraf forlængelse",7,0,null,null,null,null,null,null,null,null,null,null,null,{"$f":"SUM(C19:N19)","v":0}]
["       - heraf afslag på forlængelse",84,0,null,null,null,null,null,null,null,null,null,null,null,{"$f":"SUM(C20:N20)","v":0}]

{"sheet":"Familiesammenføring intro (1)","index":11,"n_rows":5,"n_cols":16,"rows_kept":5,"cut":false,"hidden":false,"merged":[[4,0,5,14]]}
[]
[]
[]
[]
["Familiesammenføringsområdet mv. (B) ",null,null,null,null,null,null,null,null,null,null,null,null,null,null," "]

{"sheet":"Fam - nøgletal (2)","index":12,"n_rows":33,"n_cols":15,"rows_kept":33,"cut":false,"hidden":false,"merged":[[4,0,5,14],[7,2,7,13],[24,2,24,4],[24,11,24,13],[24,8,24,10],[24,5,24,7],[18,0,19,14],[21,1,22,1],[21,2,22,4],[21,5,22,7],[21,8,22,10],[21,11,22,13],[21,14,22,14],[7,1,8,1],[61,0,61,14],[62,0,62,14],[64,0,65,14],[67,1,67,11],[67,12,67,14],[27,8,27,10],[30,2,30,4],[30,11,30,13],[37,0,37,14],[25,2,25,4],[34,0,34,14],[35,0,35,14],[36,0,36,14],[25,11,25,13],[70,0,70,14],[71,0,71,14],[26,2,26,4],[27,2,27,4],[25,8,25,10],[26,8,26,10],[27,11,27,13],[30,8,30,10],[25,5,25,7],[26,5,26,7],[27,5,27,7],[30,5,30,7],[60,0,60,14],[46,0,47,14],[59,0,59,14],[26,11,26,13]]}
[]
[]
[]
[]
["(B)   Tabel 1: Aktuelle hovedtal på familiesammenføringsområdet mv."]
[]
[]
["Periode","I alt\n2018",2019,null,null,null,null,null,null,null,null,null,null,null,"I alt"]
["Kategori",null,"jan","feb","mar","apr","maj","jun","jul","aug","sep","okt","nov","dec",{"$f":"\"pr.\"&\" \"&Forside!Q1&\"\"","v":"pr. 31.01.2019"}]
["Familiesammenføring"]
["Antal personer, som har søgt om familiesammenføring *",5939,215,null,null,null,null,null,null,null,null,null,null,null,{"$f":"SUM(C11:N11)","v":215}]
["Antal familiesammenføringstilladelser ",4602,309,null,null,null,null,null,null,null,null,null,null,null,{"$f":"SUM(C12:N12)","v":309}]
[" - heraf ægtefæller og faste samlevere",3225,245,null,null,null,null,null,null,null,null,null,null,null,{"$f":"SUM(C13:N13)","v":245}]
["Antal afslag på ansøgning om familiesammenføring ",2254,84,null,null,null,null,null,null,null,null,null,null,null,{"$f":"SUM(C14:N14)","v":84}]
[]
["Øvrige opholdssager"]
["Antal tilladelser på det øvrige opholdsområde",631,25,null,null,null,null,null,null,null,null,null,null,null,{"$f":"SUM(C17:N17)","v":25}]
[]
["(B)   Tabel 2: Historiske hovedtal på familiesammenføringsområdet mv."]
[]
[]
["Periode","Året\n2014","Året\n2015",null,null,"Året\n2016",null,null,"Året\n2017",null,null,"Året\n2018",null,null,{"$f":"\"Året\n2019\npr.\"&\" \"&Forside!Q1&\"\"","v":"Året\n2019\npr. 31.01.2019"}]
["Kategori",null,null,null,null,2010,null,null,2010,null,null,2010]
["Familiesammenføring"]
["Antal personer, som har søgt om familiesammenføring *",12307,16017,null,null,8789,null,null,6689,null,null,5939,null,null,{"$f":"O11","v":215}]
["Antal familiesammenføringstilladelser ",5727,11645,null,null,7679,null,null,7015,null,null,4602,null,null,{"$f":"O12","v":309}]
[" - heraf ægtefæller og faste samlevere",3410,5233,null,null,3825,null,null,4127,null,null,3225,null,null,{"$f":"O13","v":245}]
["Antal afslag på ansøgning om familiesammenføring ",1366,1957,null,null,2461,null,null,2637,null,null,2254,null,null,{"$f":"O14","v":84}]
[]
["Øvrige opholdssager"]
["Antal tilladelser på det øvrige opholdsområde",516,493,null,null,470,null,null,775,null,null,631,null,null,{"$f":"O17","v":25}]
[]
["* Der tages forbehold for, at der løbende kan forekomme efterkorrektioner til disse tal.",null,null,null,null,null,null,null,null," "]

{"sheet":"Fam - ansøgninger (3)","index":13,"n_rows":43,"n_cols":19,"rows_kept":43,"cut":false,"hidden":false,"merged":[[40,13,40,14],[7,1,7,12],[4,0,5,14],[30,0,31,14],[33,1,34,1],[33,2,34,2],[33,3,34,3],[33,4,34,4],[33,5,34,5],[33,6,34,6],[33,7,34,7],[33,8,34,8],[33,9,34,9],[33,10,34,10],[33,11,34,11],[33,12,34,12],[38,13,38,14],[29,0,29,14],[33,13,34,14],[35,13,35,14],[36,13,36,14],[37,13,37,14]]}
[]
[]
[]
[]
["(B)   Tabel 3: Antallet af ansøgninger om familiesammenføring fordelt på nationalitet "]
[]
[]
["Periode","2019 **",null,null,null,null,null,null,null,null,null,null,null,"I alt ","I alt"]
["Nationalitet","jan","feb","mar","apr","maj","jun","jul","aug","sep","okt","nov","dec",{"$f":"\"pr.\"&\" \"&Forside!Q1&\"\"","v":"pr. 31.01.2019"},2018]
["Syrien",7,null,null,null,null,null,null,null,null,null,null,null,{"$f":"SUM(B10:M10)","v":7},533]
["Thailand",14,null,null,null,null,null,null,null,null,null,null,null,{"$f":"SUM(B11:M11)","v":14},447]
["Tyrkiet",9,null,null,null,null,null,null,null,null,null,null,null,{"$f":"SUM(B12:M12)","v":9},354]
["Filippinerne",26,null,null,null,null,null,null,null,null,null,null,null,{"$f":"SUM(B13:M13)","v":26},399]
["Eritrea",10,null,null,null,null,null,null,null,null,null,null,null,10,489]
["Afghanistan",8,null,null,null,null,null,null,null,null,null,null,null,{"$f":"SUM(B15:M15)","v":8},264]
["USA",7,null,null,null,null,null,null,null,null,null,null,null,{"$f":"SUM(B16:M16)","v":7},224]
["Pakistan",5,null,null,null,null,null,null,null,null,null,null,null,{"$f":"SUM(B17:M17)","v":5},250]
["Iran",10,null,null,null,null,null,null,null,null,null,null,null,{"$f":"SUM(B18:M18)","v":10},172]
["Vietnam",2,null,null,null,null,null,null,null,null,null,null,null,2,100]
["Kina",5,null,null,null,null,null,null,null,null,null,null,null,5,157]
["Statsløse *",8,null,null,null,null,null,null,null,null,null,null,null,{"$f":"SUM(B21:M21)","v":8},142]
["Irak",7,null,null,null,null,null,null,null,null,null,null,null,{"$f":"SUM(B22:M22)","v":7},157]
["Ukraine",16,null,null,null,null,null,null,null,null,null,null,null,{"$f":"SUM(B23:M23)","v":16},149]
["Marokko",7,null,null,null,null,null,null,null,null,null,null,null,{"$f":"SUM(B24:M24)","v":7},128,"  "]
["Somalia",2,null,null,null,null,null,null,null,null,null,null,null,2,81]
["Brasilien",2,null,null,null,null,null,null,null,null,null,null,null,2,132]
["Indien",3,null,null,null,null,null,null,null,null,null,null,null,3,117]
["Øvrige",67,null,null,null,null,null,null,null,null,null,null,null,{"$f":"SUM(B28:M28)","v":67},1644]
["I alt ",{"$f":"SUM(B10:B28)","v":215},null,null,null,null,null,null,null,null,null,null,null,{"$f":"SUM(B29:M29)","v":215},{"$f":"SUM(O10:O28)","v":5939}]
[]
["(B)   Tabel 4: Historisk udvikling i antallet af ansøgninger om familiesammenføring "]
[]
[null,null,null,null,null,null,null,null,null,null,null,null,null,null,null,null,null,null," "]
["Måned","jan","feb","mar","apr","maj","jun","jul","aug","sep","okt","nov","dec","I alt"]
["År"]
[2014,804,768,727,707,788,951,965,1015,1231,1359,1471,1521,12307]
[2015,1668,1179,1846,1632,1553,1480,1358,1204,1038,897,1012,1150,16017]
[2016,995,1120,796,671,747,613,572,696,731,584,658,606,8789]
[2017,571,576,671,458,554,604,501,624,539,625,521,445,6689]
[2018,610,589,549,460,537,916,374,421,454,526,385,118,null,{"$f":"SUM(B40:M40)","v":5939}]
["2019 **",{"$f":"B29","v":215},null,null,null,null,null,null,null,null,null,null,null,{"$f":"SUM(B41:M41)","v":215}]
["* Inklusiv statsløse palæstinensere."]
["** Der tages forbehold for, at der løbende kan forekomme efterkorrektioner til disse tal."]

{"sheet":"Fam - (4)","index":14,"n_rows":41,"n_cols":12,"rows_kept":41,"cut":false,"hidden":false,"merged":[[2,0,3,6],[5,1,5,3],[5,4,5,6],[42,0,42,6],[16,0,17,6],[19,1,19,3],[19,4,19,6],[39,0,39,6],[40,0,40,6],[41,0,41,6]]}
[]
[]
["(B)   Tabel 5: Antal afgørelser vedr. familiesammenføring fordelt på herboende reference *"]
[]
[]
["Periode","Året 2018",null,null,{"$f":"\"Året 2019 pr.\"&\" \"&Forside!Q1&\"\"","v":"Året 2019 pr. 31.01.2019"}]
["Alle afgørelser ","Tilladelser","Afslag","I alt","Tilladelser","Afslag","I alt"]
["Ægtefæller og faste samlevere",3225,1572,{"$f":"SUM(B8:C8)","v":4797},245,63,{"$f":"SUM(E8:F8)","v":308}]
[" - heraf til herboende flygtning",493,786,{"$f":"SUM(B9:C9)","v":1279},29,14,43]
[" - heraf til herboende indvandrer",268,218,{"$f":"SUM(B10:C10)","v":486},44,17,61]
[" - heraf til herboende dansk eller nordisk statsborger",2464,568,{"$f":"SUM(B11:C11)","v":3032},172,32,204]
["Mindreårige børn *",1374,678,{"$f":"SUM(D13:D14)","v":2052},{"$f":"E13+E14","v":64},{"$f":"F13+F14","v":21},85,null," "]
[" - heraf til herboende flygtning",643,501,{"$f":"B13+C13","v":1144},23,7,30]
[" - heraf til andre",731,177,{"$f":"B14+C14","v":908},41,14,55," "," ",null," "]
["I alt",4599,2250,{"$f":"D8+D12","v":6849},309,84,{"$f":"+G8+G12","v":393},null," "," "]
[]
["(B)   Tabel 6: Antal afgørelser vedr. ægtefællesammenføring, faste samlevere fordelt på nationalitet *",null,null,null,null,null,null,null,null,null,null," "]
[]
[]
["Periode","Året 2018",null,null,{"$f":"\"Året 2019 pr.\"&\" \"&Forside!Q1&\"\"","v":"Året 2019 pr. 31.01.2019"}]
["Nationalitet","Tilladelser","Afslag","I alt","Tilladelser","Afslag","I alt"]
["Eritrea",101,325,426,1,3,{"$f":"SUM(E22:F22)","v":4}]
["Syrien",114,203,317,6,5,{"$f":"SUM(E23:F23)","v":11}]
["Thailand",326,63,389,21,3,{"$f":"SUM(E24:F24)","v":24}]
["Filippinerne",312,49,361,14,5,{"$f":"SUM(E25:F25)","v":19}]
["Tyrkiet",175,109,284,11,8,19,null," "]
["USA",150,23,173,14,0,14]
["Afghanistan",97,93,190,11,3,14]
["Kina",109,25,134,9,0,9]
["Statsløse **",67,52,119,6,1,7]
["Vietnam",91,27,118,11,1,12]
["Iran",90,38,128,6,3,9]
["Pakistan",90,49,139,15,0,15]
["Ukraine",103,16,119,7,0,7]
["Brasilien",95,10,105,7,0,7]
["Somalia",24,54,78,1,1,2]
["Øvrige",1281,436,1717,105,30,135]
["I alt",{"$f":"SUM(B22:B37)","v":3225},{"$f":"SUM(C22:C37)","v":1572},{"$f":"SUM(B38:C38)","v":4797},{"$f":"SUM(E22:E37)","v":245},{"$f":"SUM(F22:F37)","v":63},{"$f":"SUM(G22:G37)","v":308}]
["* Inklusiv afgørelser efter EU-reglerne",null,null,null,null,null,null,null,null," "]
["** Inklusiv statsløse palæstinensere."]
[" "]

{"sheet":"Fam - EU (5)","index":15,"n_rows":37,"n_cols":24,"rows_kept":37,"cut":false,"hidden":false,"merged":[[10,5,10,8],[9,0,9,4],[9,5,9,8],[9,9,9,12],[4,0,5,14],[7,5,8,8],[7,9,7,12],[7,13,7,14],[8,9,8,12],[8,13,8,14],[15,9,15,12],[15,13,15,14],[16,0,16,4],[16,5,16,8],[9,13,9,14],[10,0,10,4],[12,0,12,4],[12,5,12,8],[12,9,12,12],[12,13,12,14],[11,0,11,4],[11,5,11,8],[11,9,11,12],[11,13,11,14],[10,13,10,14],[10,9,10,12],[16,9,16,12],[16,13,16,14],[23,0,24,14],[26,14,27,14],[13,0,13,4],[13,5,13,8],[13,9,13,12],[13,13,13,14],[26,1,27,1],[26,2,26,13],[14,0,14,4],[14,5,14,8],[14,9,14,12],[14,13,14,14],[15,0,15,4],[15,5,15,8]]}
[]
[null,null,null,null,null,null," "]
[]
[]
["(B)   Tabel 7: Ansøgninger om familiesammenføring efter EU-reglerne, hvor den herboende reference er dansk statsborger fordelt på nationalitet"]
[]
[]
["Periode",null,null,null,null,2018,null,null,null,2019,null,null,null,2019]
["Nationalitet",null,null,null,null,null,null,null,null,{"$f":"\"I alt pr.\"&\" \"&Forside!Q1&\"\"","v":"I alt pr. 31.01.2019"},null,null,null,{"$f":"\"Andel pr.\"&\" \"&Forside!Q1&\"\"","v":"Andel pr. 31.01.2019"}]
["Tyrkiet",null,null,null,null,45,null,null,null,1,null,null,null,{"$f":"J10/J17","v":3.3333333333333333E-2}]
["Filippinerne",null,null,null,null,19,null,null,null,5,null,null,null,{"$f":"J11/$J$17","v":0.16666666666666666}]
["Pakistan",null,null,null,null,24,null,null,null,1,null,null,null,{"$f":"J12/$J$17","v":3.3333333333333333E-2}]
["Brasilien",null,null,null,null,14,null,null,null,0,null,null,null,{"$f":"J13/J17","v":0}]
["Thailand",null,null,null,null,17,null,null,null,5,null,null,null,{"$f":"J14/J17","v":0.16666666666666666}]
["USA",null,null,null,null,22,null,null,null,0,null,null,null,{"$f":"J15/J17","v":0}]
["Øvrige",null,null,null,null,208,null,null,null,18,null,null,null,0.6]
["I alt",null,null,null,null,{"$f":"SUM(F10+F11+F12+F13+F14+F15+F16)","v":349},null,null,null,{"$f":"SUM(J10+J11+J12+J13+J14+J15+J16)","v":30},null,null,null,1]
[]
[null,null,null,null,null,null,null,null,null,null,null,null,null,null,null,null," "]
[]
[]
[]
[null,null,null,null,null,null,null,null,null,null,null,null,null,null,null,null,null,null,null,null,null,null,null," "]
["(B)   Tabel 8: Afgørelser om familiesammenføring efter EU-reglerne, hvor den herboende reference er dansk statsborger"]
[null,null,null,null,null,null,null,null,null,null,null,null,null,null,null,null,null,null,null," "]
[]
["Periode","I alt\n2018",2019,null,null,null,null,null,null,null,null,null,null,null,{"$f":"\"I alt pr.\"&\" \n\"&Forside!Q1&\"\"","v":"I alt pr. \n31.01.2019"}]
["Afgørelse",null,"jan","feb","mar","apr","maj","jun","jul","aug","sep","okt","nov","dec"]
["Tilladelser",289,17,null,null,null,null,null,null,null,null,null,null,null,{"$f":"SUM(C29:N29)","v":17}]
["Afslag",101,11,null,null,null,null,null,null,null,null,null,null,null,{"$f":"SUM(C30:N30)","v":11},null," "]
["I alt",390,{"$f":"SUM(C29:C30)","v":28},null,null,null,null,null,null,null,null,null,null,null,{"$f":"SUM(O29:O30)","v":28}]
[null,null,null,null,null,null,null,null,null,null,null,null," "," "]
[null,null,null,null,null,null,null,null,null," "]
[]
[]
[]
[null,null,null,null,null,null,null,null,null,null,null,null,null,null,null,null,null," "]

{"sheet":"TUB - intro","index":16,"n_rows":5,"n_cols":1,"rows_kept":5,"cut":false,"hidden":false,"merged":[[4,0,5,14]]}
[]
[]
[]
[]
["Permanente (tidsubegrænsede) opholdstilladelser (C)"]

{"sheet":"TUB - hovedtal","index":17,"n_rows":43,"n_cols":19,"rows_kept":43,"cut":false,"hidden":false,"merged":[[20,0,20,2],[21,0,21,2],[23,0,23,2],[19,0,19,2],[4,0,6,16],[7,0,7,2],[7,3,8,3],[7,4,7,15],[9,0,9,2],[10,0,10,2],[11,0,11,2],[14,0,15,16],[17,0,17,2],[17,3,18,3],[17,4,17,15],[22,0,22,2],[24,0,24,2],[39,11,39,16],[35,0,35,2],[36,0,36,2],[37,0,37,2],[32,0,32,2],[33,0,33,2],[34,0,34,2],[39,0,39,6],[30,3,31,3],[27,0,28,16],[30,4,30,15]]}
[]
[]
[null,null,null,null,null,null,null,null," "]
[]
["(C)   Tabel 1: Permanente opholdstilladelser opdelt på kategorier"]
[]
[]
["Periode",null,null,"2018\nI alt",2019,null,null,null,null,null,null,null,null,null,null,null,2019]
["Kategori",null,null,null,"jan","feb","mar","apr","maj","jun","jul","aug","sep","okt","nov","dec",{"$f":"\"i alt\npr.\"&\" \"&Forside!Q1&\"\"","v":"i alt\npr. 31.01.2019"}]
["Asyl",null,null,225,7,null,null,null,null,null,null,null,null,null,null,null,{"$f":"SUM(E10:P10)","v":7}]
["Familiesammenføring mv.",null,null,1900,144,null,null,null,null,null,null,null,null,null,null,null,{"$f":"SUM(E11:P11)","v":144}]
["Erhverv/Studie mv.",null,null,651,91,null,null,null,null,null,null,null,null,null,null,null,{"$f":"SUM(E12:P12)","v":91}]
["I alt",null,null,{"$f":"SUM(D10:D12)","v":2776},242,null,null,null,null,null,null,null,null,null,null,null,{"$f":"SUM(Q10:Q12)","v":242}]
[]
["(C)   Tabel 2: Permanente opholdstilladelser, asyl fordelt på nationaliteter",null,null,null,null,null,null,null,null,null,null,null,null,null,null,null,null," "]
[null,null,null,null,null,null,null,null,null,null,null,null,null,null,null,null,null,null," "]
[]
["Periode",null,null,"2018\nI alt",2019,null,null,null,null,null,null,null,null,null,null,null,2019,null," "]
["Kategori",null,null,null,"jan","feb","mar","apr","maj","jun","jul","aug","sep","okt","nov","dec",{"$f":"\"i alt\npr.\"&\" \"&Forside!Q1&\"\"","v":"i alt\npr. 31.01.2019"}]
["Irak",null,null,25,0,null,null,null,null,null,null,null,null,null,null,null,{"$f":"SUM(E20:P20)","v":0}," "]
["Afghanistan",null,null,45,0,null,null,null,null,null,null,null,null,null,null,null,{"$f":"SUM(E21:P21)","v":0}]
["Iran",null,null,23,1,null,null,null,null,null,null,null,null,null,null,null,1]
["Den Demokratiske Republik Congo",null,null,14,0,null,null,null,null,null,null,null,null,null,null,null,0]
["Statsløse *",null,null,13,0,null,null,null,null,null,null,null,null,null,null,null,0]
["Øvrige",null,null,105,6,null,null,null,null,null,null,null,null,null,null,null,6]
["I alt",null,null,225,{"$f":"SUM(E20:E25)","v":7},null,null,null,null,null,null,null,null,null,null,null,{"$f":"SUM(E26:P26)","v":7}]
[]
["(C)   Tabel 3: Permanente opholdstilladelser, familiesammenføring mv. fordelt på nationaliteter"]
[]
[]
["Periode",null,null,"2018\nI alt",2019,null,null,null,null,null,null,null,null,null,null,null,2019]
["Kategori",null,null,null,"jan","feb","mar","apr","maj","jun","jul","aug","sep","okt","nov","dec",{"$f":"\"i alt\npr.\"&\" \"&Forside!Q1&\"\"","v":"i alt\npr. 31.01.2019"}]
["Tyrkiet",null,null,394,24,null,null,null,null,null,null,null,null,null,null,null,{"$f":"SUM(E33:P33)","v":24}]
["Thailand",null,null,125,11,null,null,null,null,null,null,null,null,null,null,null,11]
["Irak",null,null,124,7,null,null,null,null,null,null,null,null,null,null,null,7]
["Tyskland",null,null,106,4,null,null,null,null,null,null,null,null,null,null,null,4]
["Filippinerne",null,null,91,5,null,null,null,null,null,null,null,null,null,null,null,5]
["Øvrige",null,null,1060,93,null,null,null,null,null,null,null,null,null,null,null,{"$f":"SUM(E38:P38)","v":93}]
["I alt",null,null,{"$f":"SUM(D33:D38)","v":1900},144,null,null,null,null,null,null,null,null,null,null,null,144," "]
["* Inklusiv statsløse palæstinensere."]
[]
[]
[null,null,null,null,null,null,null,null,null," "]

{"sheet":"TUB - hovedtal (2)","index":18,"n_rows":24,"n_cols":17,"rows_kept":24,"cut":false,"hidden":false,"merged":[[10,0,10,2],[4,0,5,16],[7,0,7,2],[7,3,8,3],[7,4,7,15],[9,0,9,2],[16,11,16,16],[11,0,11,2],[12,0,12,2],[13,0,13,2],[14,0,14,2]]}
[]
[]
[]
[]
["(C)   Tabel 4: Permanente opholdstilladelser, erhverv/studie mv. fordelt på nationaliteter"]
[]
[]
["Periode",null,null,"2018\nI alt",2019,null,null,null,null,null,null,null,null,null,null,null,2019]
["Kategori",null,null,null,"jan","feb","mar","apr","maj","jun","jul","aug","sep","okt","nov","dec",{"$f":"\"i alt\npr.\"&\" \"&Forside!Q1&\"\"","v":"i alt\npr. 31.01.2019"}]
["Ukraine",null,null,128,22,null,null,null,null,null,null,null,null,null,null,null,{"$f":"SUM(E10:P10)","v":22}]
["Indien",null,null,92,14,null,null,null,null,null,null,null,null,null,null,null,14]
["Pakistan",null,null,66,6,null,null,null,null,null,null,null,null,null,null,null,6]
["Kina",null,null,62,5,null,null,null,null,null,null,null,null,null,null,null,5]
["Bangladesh",null,null,28,6,null,null,null,null,null,null,null,null,null,null,null,6]
["Øvrige",null,null,275,38,null,null,null,null,null,null,null,null,null,null,null,38]
["I alt",null,null,{"$f":"SUM(D10:D15)","v":651},{"$f":"SUM(E10:E15)","v":91},{"$f":"SUM(F10:F15)","v":0},0,0,0,0,0,{"$f":"SUM(L10:L15)","v":0},{"$f":"SUM(M10:M15)","v":0},{"$f":"SUM(N10:N15)","v":0},{"$f":"SUM(O10:O15)","v":0},{"$f":"SUM(P10:P15)","v":0},91]
[]
[]
[]
[null,null,null,null,null,null,null,null," "]
[]
[null,null,null,null,null,null,null,null,null,null,null,null,null,null," "]
[]
[null,null,null,null,null,null,null,null,null,null,null," "]

{"sheet":"Visum - intro","index":19,"n_rows":5,"n_cols":1,"rows_kept":5,"cut":false,"hidden":false,"merged":[[4,0,5,14]]}
[]
[]
[]
[]
["Visum (D) "]

{"sheet":"Visum - hovedtal","index":20,"n_rows":35,"n_cols":16,"rows_kept":35,"cut":false,"hidden":false,"merged":[[9,11,9,13],[8,11,8,13],[2,0,3,13],[5,1,5,10],[5,11,6,13],[6,2,6,4],[6,5,6,7],[6,8,6,10],[8,2,8,4],[8,5,8,7],[8,8,8,10],[9,2,9,4],[9,5,9,7],[9,8,9,10],[13,11,13,13],[10,2,10,4],[10,5,10,7],[10,8,10,10],[11,2,11,4],[11,5,11,7],[11,8,11,10],[12,2,12,4],[12,5,12,7],[12,8,12,10],[13,2,13,4],[13,5,13,7],[13,8,13,10],[12,11,12,13],[11,11,11,13],[10,11,10,13],[16,2,16,4],[16,5,16,7],[16,8,16,10],[17,2,17,4],[17,5,17,7],[17,8,17,10],[18,2,18,4],[18,5,18,7],[18,8,18,10],[19,2,19,4],[19,5,19,7],[19,8,19,10],[20,2,20,4],[20,5,20,7],[20,8,20,10],[20,11,20,13],[21,2,21,4],[21,5,21,7],[21,8,21,10],[21,11,21,13],[23,0,24,13],[26,1,27,1],[26,2,27,4],[26,5,27,7],[26,8,27,10],[26,11,27,13],[16,11,16,13],[17,11,17,13],[18,11,18,13],[19,11,19,13],[36,0,36,14],[29,2,29,4],[29,5,29,7],[29,8,29,10],[29,11,29,13],[30,2,30,4],[30,5,30,7],[30,8,30,10],[30,11,30,13],[34,2,34,4],[34,5,34,7],[34,8,34,10],[71,0,71,14],[61,0,61,14],[62,0,62,14],[64,0,65,14],[67,1,67,11],[67,12,67,14],[70,0,70,14],[60,0,60,14],[33,2,33,4],[33,5,33,7],[33,8,33,10],[33,11,33,13],[35,0,35,14],[37,0,37,14],[46,0,47,14],[59,0,59,14],[34,11,34,13]]}
[]
[]
["(D)   Tabel 1: Udstedte visa i Udlændingestyrelsen og i Udenrigsministeriet (repræsentationerne)"]
[]
[]
["Rejseformål","udvalgte rejseformål",null,null,null,null,null,null,null,null,null,{"$f":"\"I alt \npr.\"&\" \"&Forside!Q1&\"\"","v":"I alt \npr. 31.01.2019"}]
["Myndighed/Nationalitet","- heraf forretningsvisa","- heraf \nbesøgsvisa",null,null,"- heraf \nturistvisa",null,null,"- heraf visa til kultur/sport"]
["Udlændingestyrelsen"]
["Thailand",0,29,null,null,5,null,null,0,null,null,39]
["Filippinerne",0,6,null,null,2,null,null,0,null,null,14]
["Ukraine",0,0,null,null,0,null,null,0,null,null,0]
["Tyrkiet",0,6,null,null,1,null,null,0,null,null,7]
["Øvrige",13,56,null,null,6,null,null,1,null,null,89]
[{"$f":"\"I alt pr.\"&\" \"&Forside!Q1&\"\"","v":"I alt pr. 31.01.2019"},{"$f":"SUM(B9:B13)","v":13},{"$f":"C9+C10+C11+C12+C13","v":97},null,null,{"$f":"F9+F10+F11+F12+F13","v":14},null,null,{"$f":"I9+I10+I11+I12+I13","v":1},null,null,{"$f":"L9+L10+L11+L12+L13","v":149},null,null,null," "]
[]
["Udenrigsministeriet (repræsentationerne)"]
["Kina",664,174,null,null,3694,null,null,159,null,null,4700]
["Indien  ",806,156,null,null,916,null,null,15,null,null,1905]
["Thailand",41,126,null,null,959,null,null,0,null,null,1149]
["Rusland",117,82,null,null,89,null,null,56,null,null,348]
["Øvrige",694,732,null,null,892,null,null,77,null,null,2559]
[{"$f":"A14","v":"I alt pr. 31.01.2019"},{"$f":"B17+B18+B19+B20+B21","v":2322},{"$f":"SUM(C17+C18+C19+C20+C21)","v":1270},null,null,{"$f":"SUM(F17:H21)","v":6550},null,null,{"$f":"SUM(I17:K21)","v":307},null,null,{"$f":"SUM(L17+L18+L19+L20+L21)","v":10661}]
[null,null,null,null,null,null,null,null,null,null,null,null,null,null,null," "]
["(D)   Tabel 2: Historiske hovedtal på visumområdet"]
[]
[]
["Periode","Året\n2015","Året\n2016",null,null,"Året\n2017",null,null,"Året\n2018",null,null,{"$f":"\"Året\n2019\npr.\"&\" \"&Forside!Q1&\"\"","v":"Året\n2019\npr. 31.01.2019"}]
["Kategori"]
["Udlændingestyrelsen"]
["Tilladelser",2156,1771,null,null,1830,null,null,2111,null,null,149]
["Afslag",3184,1881,null,null,1845,null,null,2262,null,null,161]
[]
["Udenrigsministeriet (repræsentationerne)"]
["Tilladelser",114112,132574,null,null,139663,null,null,147861,null,null,10661]
["Afslag",3371,6440,null,null,7764,null,null,9211,null,null,903]

{"sheet":"Erhverv - intro ","index":21,"n_rows":5,"n_cols":1,"rows_kept":5,"cut":false,"hidden":false,"merged":[[4,0,5,14]]}
[]
[]
[]
[]
["Erhvervsområdet (E)"]

{"sheet":"Erhverv - år","index":22,"n_rows":38,"n_cols":16,"rows_kept":38,"cut":false,"hidden":false,"merged":[[23,0,23,16],[24,0,24,16],[25,0,25,16],[21,6,21,8],[21,9,21,11],[21,12,21,14],[21,15,21,16],[16,6,16,8],[16,9,16,11],[16,12,16,14],[16,15,16,16],[18,0,18,5],[18,6,18,8],[18,9,18,11],[18,12,18,14],[18,15,18,16],[17,0,17,4],[17,6,17,8],[17,9,17,11],[17,12,17,14],[17,15,17,16],[14,6,14,8],[14,9,14,11],[14,12,14,14],[14,15,14,16],[15,6,15,8],[15,9,15,11],[15,12,15,14],[15,15,15,16],[12,6,12,8],[12,9,12,11],[12,12,12,14],[12,15,12,16],[13,6,13,8],[13,9,13,11],[13,12,13,14],[13,15,13,16],[10,6,10,8],[10,9,10,11],[10,12,10,14],[10,15,10,16],[11,6,11,8],[11,9,11,11],[11,12,11,14],[11,15,11,16],[8,6,8,8],[8,9,8,11],[8,12,8,14],[8,15,8,16],[9,6,9,8],[9,9,9,11],[9,12,9,14],[9,15,9,16],[7,6,7,8],[7,9,7,11],[7,12,7,14],[7,15,7,16],[4,0,5,16],[20,15,20,16],[20,12,20,14],[20,9,20,11],[20,6,20,8],[20,0,20,5]]}
[]
[]
[]
[]
["(E)   Tabel 1: Opholdstilladelser på erhvervsområdet - fordelt på år"]
[]
[]
["Kategori",null,null,null,null,"Periode",2016,null,null,2017,null,null,2018,null,null,{"$f":"\"2019\npr.\"&\" \"&Forside!Q1&\"\"","v":"2019\npr. 31.01.2019"}]
["Beløbsordningen",null,null,null,null,null,3118,null,null,2586,null,null,2570,null,null,180]
["Fast-trackordningen",null,null,null,null,null,1735,null,null,2249,null,null,2783,null,null,238]
["Koncernordningen, Positivlisten og Jobskifte v. uforskyldt ledighed",null,null,null,null,null,145,null,null,243,null,null,412,null,null,28]
["Forskere og undervisere",null,null,null,null,null,572,null,null,558,null,null,529,null,null,40]
["Landbrug",null,null,null,null,null,860,null,null,861,null,null,899,null,null,90]
["Start-Up Denmark og Selvstændige",null,null,null,null,null,33,null,null,22,null,null,44,null,null,8]
["Greencard (pointbaseret)",null,null,null,null,null,811,null,null,145,null,null,6,null,null,0]
["Etableringskort",null,null,null,null,null,334,null,null,422,null,null,406,null,null,44]
["Øvrige kategorier *",null,null,null,null,null,519,null,null,445,null,null,575,null,null,28]
["Familiemæssig tilknytning til person med opholdstilladelse på erhvervsområdet",null,null,null,null,null,4345,null,null,4640,null,null,5190,null,null,396]
["Lønarbejde på Grønland/Færøerne og medfølgende familie samt Associering-stand still",null,null,null,null,null,419,null,null,575,null,null,935,null,null,73]
[]
["Associeringsaftalen og familiemedlemmer til personer med ophold efter Associeringsaftalen",null,null,null,null,null,12,null,null,3,null,null,4,null,null,0]
["I alt ",null,null,null,null,null,{"$f":"SUM(G9:I21)","v":12903},null,null,{"$f":"SUM(J9:L21)","v":12749},null,null,{"$f":"SUM(M9:O21)","v":14353},null,null,{"$f":"SUM(P9:Q21)","v":1125}]
[]
["* Kategorien Øvrige omfatter tilladelser til trainees, personer med særlige individuelle kvalifikationer, kokke, cirkusspecialister, personer arbejdende på en boreplatform eller lignende, idrætsudøvere og trænere, musikere og artister, øvrigt lønarbejde, arbejdsmarkedstilknytning og specialister samt familiemæssig tilknytning til udlandsdanskere, som falder udenfor ovenstående kategorier."]
[]
[]
[]
[]
[]
[]
[]
[]
[]
[]
[]
[]
[null,null,null,null,null,null,null,null,null,null,null," "]
[null,null,null,null,null,null,null,null,null," "]

{"sheet":"Erhverv - måneder","index":23,"n_rows":49,"n_cols":18,"rows_kept":49,"cut":false,"hidden":false,"merged":[[25,0,25,16],[26,0,26,16],[27,0,27,16],[21,0,21,2],[24,0,24,16],[22,0,22,2],[19,0,19,2],[18,0,18,2],[11,0,11,2],[4,0,5,16],[7,0,7,2],[7,3,8,3],[7,4,7,15],[7,16,8,16],[8,0,8,2]]}
[]
[]
[]
[]
["(E)   Tabel 2: Opholdstilladelser på erhvervsområdet - fordelt på måneder"]
[]
[]
["Periode",null,null,"2018\nI alt",2019,null,null,null,null,null,null,null,null,null,null,null,{"$f":"\"2019\ni alt\npr.\"&\" \"&Forside!Q1&\"\"","v":"2019\ni alt\npr. 31.01.2019"}]
["Kategori",null,null,null,"jan","feb","mar","apr","maj","jun","jul","aug","sep","okt","nov","dec"]
["Beløbsordningen",null,null,2570,180,null,null,null,null,null,null,null,null,null,null,null,{"$f":"SUM(E10:P10)","v":180}]
["Fast-trackordningen",null,null,2783,238,null,null,null,null,null,null,null,null,null,null,null,238]
["Positivlisten og Jobskifte v. uforskyldt ledighed",null,null,412,28,null,null,null,null,null,null,null,null,null,null,null,28]
["Forskere og undervisere",null,null,529,40,null,null,null,null,null,null,null,null,null,null,null,40]
["Landbrug",null,null,899,90,null,null,null,null,null,null,null,null,null,null,null,90]
["Start-Up Denmark og Selvstændige",null,null,44,8,null,null,null,null,null,null,null,null,null,null,null,8]
["Greencard (pointbaseret)",null,null,6,0,null,null,null,null,null,null,null,null,null,null,null,0]
["Etableringskort",null,null,406,44,null,null,null,null,null,null,null,null,null,null,null,44]
["Øvrige kategorier *",null,null,575,28,null,null,null,null,null,null,null,null,null,null,null,28]
["Familiemæssig tilknytning til person med opholdstilladelse på erhvervsområdet",null,null,5190,396,null,null,null,null,null,null,null,null,null,null,null,396]
["Lønarbejde på Grønland/Færøerne og medfølgende familie samt Associering-stand still ",null,null,935,73,null,null,null,null,null,null,null,null,null,null,null,73]
[]
["Associeringsaftalen og familiemedlemmer til personer med ophold efter Associeringsaftalen",null,null,4,0,null,null,null,null,null,null,null,null,null,null,null,0]
["I alt ",null,null,{"$f":"SUM(D10:D22)","v":14353},1125,null,null,null,null,null,null,null,null,null,null,null,{"$f":"SUM(Q10:Q22)","v":1125}]
[null,null,null,null,null,null,null,null,null,null,null,null,null,null,null,null,null," "]
["Note: For note vedr. Øvrige kategorier henvises til Tabel 1."]
[" "]
[]
[]
[]
[]
[]
[]
[]
[]
[]
[]
[]
[]
[]
[]
[]
[]
[]
[]
[]
[]
[]
[null,null,null,null,null,null,null,null,null,null,null," "]
[null,null,null,null,null,null,null,null,null," "]

{"sheet":"Erhverv - Nationaliteter1","index":24,"n_rows":27,"n_cols":9,"rows_kept":27,"cut":false,"hidden":false,"merged":[[25,0,25,8],[26,0,26,8],[27,0,27,8],[11,0,11,2],[18,0,18,2],[21,0,21,2],[19,0,19,2],[22,0,22,2],[24,0,24,16],[4,0,5,8],[7,0,7,2],[7,3,8,3],[7,4,7,7],[7,8,8,8],[8,0,8,2]]}
[]
[]
[]
[]
["(E)   Tabel 3: Opholdstilladelser på erhvervsområdet - fordelt på nationaliteter"]
[]
[]
["Periode",null,null,"2018\nI alt","Udvalgte nationaliteter 2019",null,null,null,{"$f":"\"2019\ni alt \npr.\"&\" \"&Forside!Q1&\"\"","v":"2019\ni alt \npr. 31.01.2019"}]
["Kategori",null,null,null,"Indien","Ukraine","Kina","USA"]
["Beløbsordningen",null,null,2570,62,4,26,23,180]
["Fast-trackordningen",null,null,2783,136,3,12,9,238]
["Positivlisten og Jobskifte v. uforskyldt ledighed",null,null,412,8,0,2,5,28]
["Forskere og undervisere",null,null,529,4,1,10,4,40]
["Landbrug",null,null,899,0,87,0,0,90]
["Start-Up Denmark og Selvstændige",null,null,44,3,0,0,1,8]
["Greencard (pointbaseret)",null,null,6,0,0,0,0,0]
["Etableringskort",null,null,406,8,0,5,4,44]
["Øvrige kategorier *",null,null,575,1,0,0,8,28]
["Familiemæssig tilknytning til person med opholdstilladelse på erhvervsområdet",null,null,5190,174,66,25,4,396]
["Lønarbejde på Grønland/Færøerne og medfølgende familie samt Associering-stand still",null,null,935,3,0,0,2,73]
[]
["Associeringsaftalen og familiemedlemmer til personer med ophold efter Associeringsaftalen",null,null,4,0,0,0,0,0]
["I alt ",null,null,{"$f":"SUM(D10:D22)","v":14353},{"$f":"SUM(E10:E22)","v":399},161,80,{"$f":"SUM(H10:H22)","v":60},{"$f":"SUM(I10:I22)","v":1125}]
[]
["Note: For note vedr. Øvrige kategorier henvises til Tabel 1."]
[" "]
[" "]

{"sheet":"Erhverv - nationaliteter2","index":25,"n_rows":47,"n_cols":20,"rows_kept":47,"cut":false,"hidden":false,"merged":[[17,0,17,15],[25,0,25,2],[26,0,26,2],[25,4,25,15],[22,0,23,16],[25,3,26,3],[25,16,26,16],[33,0,33,2],[35,0,35,15],[27,0,27,2],[28,0,28,2],[29,0,29,2],[30,0,30,2],[31,0,31,2],[32,0,32,2],[7,4,7,15],[4,0,5,16],[7,3,8,3],[15,0,15,2],[7,0,7,2],[8,0,8,2],[9,0,9,2],[10,0,10,2],[11,0,11,2],[12,0,12,2],[13,0,13,2],[14,0,14,2],[7,16,8,16]]}
[]
[]
[]
[]
["(E)   Tabel 4: Opholdstilladelser efter Fast-trackordningen, Beløbsordningen, Positivlisten og forskere og undervisere fordelt på måneder og nationaliteter"]
[]
[]
[null,null,null,"2018\nI alt",2019,null,null,null,null,null,null,null,null,null,null,null,{"$f":"\"2019\ni alt \npr.\"&\" \"&Forside!Q1&\"\"","v":"2019\ni alt \npr. 31.01.2019"}]
["Nationalitet",null,null,null,"jan","feb","mar","apr","maj","jun","jul","aug","sep","okt","nov","dec"]
["Indien",null,null,2449,210,null,null,null,null,null,null,null,null,null,null,null,{"$f":"SUM(E10:P10)","v":210}]
["Kina",null,null,723,49,null,null,null,null,null,null,null,null,null,null,null,{"$f":"SUM(E11:P11)","v":49}]
["USA",null,null,612,40,null,null,null,null,null,null,null,null,null,null,null,40]
["Canada",null,null,132,9,null,null,null,null,null,null,null,null,null,null,null,9]
["Iran",null,null,181,14,null,null,null,null,null,null,null,null,null,null,null,14]
["Øvrige ",null,null,2112,158,null,null,null,null,null,null,null,null,null,null,null,158]
["I alt",null,null,{"$f":"SUM(D10:D15)","v":6209},480,null,null,null,null,null,null,null,null,null,null,null,{"$f":"SUM(E16:P16)","v":480}]
[null,null,null,null,null,null,null,null,131]
[" "]
[null,null,null,null,null,null,null,null,null,null,null," ",null,null,null," "," "]
[null,null,null,null,null,null," ",null," "]
[]
[null,null,null,null,null,null,null,null,null,null,null,null,null,null,null,null,null,null,null," "]
["(E)   Tabel 5: Opholdstilladelser efter Greencard-ordningen og Etableringskort fordelt på nationaliteter"]
[]
[]
["Periode",null,null,"2018\nI alt",2019,null,null,null,null,null,null,null,null,null,null,null,{"$f":"\"2019\ni alt \npr.\"&\" \"&Forside!Q1&\"\"","v":"2019\ni alt \npr. 31.01.2019"}]
["Nationalitet",null,null,null,"jan","feb","mar","apr","maj","jun","jul","aug","sep","okt","nov","dec"]
["Kina",null,null,96,5,null,null,null,null,null,null,null,null,null,null,null,{"$f":"SUM(E28:P28)","v":5}]
["Indien",null,null,48,8,null,null,null,null,null,null,null,null,null,null,null,8]
["Iran",null,null,31,6,null,null,null,null,null,null,null,null,null,null,null,6]
["USA",null,null,34,4,null,null,null,null,null,null,null,null,null,null,null,4]
["Nepal",null,null,19,2,null,null,null,null,null,null,null,null,null,null,null,2,null,null," "]
["Øvrige",null,null,184,19,null,null,null,null,null,null,null,null,null,null,null,19]
["I alt",null,null,{"$f":"SUM(D28:D33)","v":412},{"$f":"SUM(E28:E33)","v":44},null,null,null,null,null,null,null,null,null,null,null,{"$f":"SUM(E34:P34)","v":44}]
[]
[]
[null,null,null,null,null,null,null,null,null,null,null,null,null,null," "]
[]
[]
[]
[]
[]
[]
[]
[]
[null,null,null,null,null,null,null,null,null,null," "]
[null,null,null,null,null,null,null,null," "]

{"sheet":"Studie - intro","index":26,"n_rows":30,"n_cols":18,"rows_kept":30,"cut":false,"hidden":false,"merged":[[4,0,5,14]]}
[]
[]
[]
[]
["Studieområdet mv. (F) "]
[]
[]
[]
[]
[]
[]
[]
[]
[]
[]
[]
[]
[]
[]
[]
[]
[]
[]
[]
[]
[]
[]
[]
[]
[null,null,null,null,null,null,null,null,null,null,null,null,null,null,null,null,null,""]

{"sheet":"Studie - hovedtal","index":27,"n_rows":30,"n_cols":21,"rows_kept":30,"cut":false,"hidden":false,"merged":[[29,16,29,17],[30,0,30,17],[31,0,31,17],[27,0,27,2],[27,16,27,17],[28,0,28,2],[28,16,28,17],[24,0,24,2],[24,16,24,17],[25,0,25,2],[25,16,25,17],[26,0,26,2],[26,16,26,17],[15,0,15,15],[16,0,16,17],[18,0,18,17],[19,0,20,17],[22,0,22,2],[22,3,23,3],[22,4,22,15],[22,16,23,17],[13,6,13,8],[13,9,13,11],[13,12,13,14],[13,15,13,17],[14,6,14,8],[14,9,14,11],[14,12,14,14],[14,15,14,17],[12,6,12,8],[12,9,12,11],[12,12,12,14],[12,15,12,17],[11,6,11,8],[8,6,8,8],[8,9,8,11],[8,12,8,14],[8,15,8,17],[11,9,11,11],[11,12,11,14],[9,6,9,8],[9,9,9,11],[9,12,9,14],[9,15,9,17],[10,6,10,8],[10,9,10,11],[10,12,10,14],[10,15,10,17],[11,15,11,17],[4,0,5,17],[7,6,7,8],[7,9,7,11],[7,12,7,14],[7,15,7,17]]}
[]
[]
[]
[]
["(F)   Tabel 1: Opholdstilladelser på studieområdet mv."]
[]
[]
["Kategori",null,null,null,null,"Periode",2016,null,null,2017,null,null,2018,null,null,{"$f":"\"2019\ni alt pr.\"&\" \"&Forside!Q1&\"\"","v":"2019\ni alt pr. 31.01.2019"}]
["Uddannelse, inkl. PhD ",null,null,null,null,null,9194,2244,2244,8949,null,null,8857,null,null,353]
["Au pair",null,null,null,null,null,1349,null,null,1423,null,null,1310,null,null,72]
["Praktikanter",null,null,null,null,null,1272,null,null,1899,null,null,2250,null,null,192]
["Volontør og Working Holiday mv.",null,null,null,null,null,1422,null,null,1874,null,null,2213,null,null,188]
["Religiøse forkyndere mv.",null,null,null,null,null,75,null,null,90,null,null,109,null,null,5]
["Øvrige ",null,null,null,null,null,979,null,null,1067,null,null,1080,null,null,84,null,null,null,null," "]
["I alt",null,null,null,null,null,{"$f":"G9+G10+G11+G12+G13+G14","v":14291},null,null,{"$f":"J9+J10+J11+J12+J13+J14","v":15302},null,null,{"$f":"SUM(M9:O14)","v":15819},null,null,{"$f":"SUM(P9:R14)","v":894}]
[]
[null,null,null,null,null,null,null,null,null,null,null,null,null,null,null,null,null,null,null,null," "]
[]
[]
["(F)   Tabel 2: Opholdstilladelser med henblik på uddannelse"]
[]
[]
["Periode",null,null,"2018\nI alt",2019,null,null,null,null,null,null,null,null,null,null,null,{"$f":"\"2019\ni alt \npr.\"&\" \"&Forside!Q1&\"\"","v":"2019\ni alt \npr. 31.01.2019"}]
["Kategori",null,null,null,"jan","feb","mar","apr","maj","jun","jul","aug","sep","okt","nov","dec"]
["PhD-uddannelse",null,null,879,46,null,null,null,null,null,null,null,null,null,null,null,{"$f":"SUM(E25:P25)","v":46}]
["Videregående uddannelse, Danske Universiteter *",null,null,5990,180,null,null,null,null,null,null,null,null,null,null,null,180,null,null," "]
["Videregående uddannelse, øvrige institutioner ",null,null,1047,87,null,null,null,null,null,null,null,null,null,null,null,87]
["Kursus på folkehøjskole",null,null,533,19,null,null,null,null,null,null,null,null,null,null,null,19]
["Grund- og ungdomsuddannelse",null,null,408,21,null,null,null,null,null,null,null,null,null,null,null,21,null,null," "]
["I alt",null,null,{"$f":"SUM(D25:D29)","v":8857},353,null,null,null,null,null,null,null,null,null,null,null,{"$f":"SUM(E30:P30)","v":353}]

{"sheet":"Studie - nationaliteter","index":28,"n_rows":45,"n_cols":22,"rows_kept":45,"cut":false,"hidden":false,"merged":[[43,0,43,14],[27,0,27,2],[30,0,31,16],[33,3,34,3],[33,4,33,15],[33,16,34,16],[40,0,40,2],[20,3,21,3],[20,4,20,15],[20,16,21,16],[4,0,5,16],[7,3,8,3],[7,4,7,15],[7,16,8,16],[17,0,18,16]]}
[]
[]
[]
[]
["(F)   Tabel 3: Opholdstilladelser med henblik på uddannelse, inkl. personer på en PhD-uddannelse, fordelt på nationaliteter *"]
[]
[]
[null,null,null,"2018\nI alt",2018,null,null,null,null,null,null,null,null,null,null,null,{"$f":"\"2018\ni alt \npr.\"&\" \"&Forside!Q1&\"\"","v":"2018\ni alt \npr. 31.01.2019"}]
["Nationalitet",null,null,null,"jan","feb","mar","apr","maj","jun","jul","aug","sep","okt","nov","dec"]
["USA",null,null,3251,74,null,null,null,null,null,null,null,null,null,null,null,{"$f":"SUM(E10:P10)","v":74}]
["Kina",null,null,1315,30,null,null,null,null,null,null,null,null,null,null,null,30]
["Nepal",null,null,369,39,null,null,null,null,null,null,null,null,null,null,null,39]
["Australien",null,null,405,17,null,null,null,null,null,null,null,null,null,null,null,17]
["Indien",null,null,372,32,null,null,null,null,null,null,null,null,null,null,null,32]
["Øvrige ",null,null,3145,161,null,null,null,null,null,null,null,null,null,null,null,161]
["I alt",null,null,{"$f":"SUM(D10:D15)","v":8857},{"$f":"SUM(E10:E15)","v":353},null,null,null,null,null,null,null,null,null,null,null,{"$f":"SUM(Q10:Q15)","v":353}]
[]
["(F)   Tabel 4: Opholdstilladelser til au pair-personer fordelt på nationaliteter ",null,null,null,null,null,null,null,null,null,null,null,null,null,null,null,null,null," "," "]
[]
[]
[null,null,null,"2018\nI alt",2019,null,null,null,null,null,null,null,null,null,null,null,{"$f":"\"2019\ni alt \npr.\"&\" \"&Forside!Q1&\"\"","v":"2019\ni alt \npr. 31.01.2019"},null," "]
["Nationalitet",null,null,null,"jan","feb","mar","apr","maj","jun","jul","aug","sep","okt","nov","dec",null,null," "]
["Filippinerne",null,null,1060,60,null,null,null,null,null,null,null,null,null,null,null,{"$f":"SUM(E23:P23)","v":60}]
["Kenya",null,null,34,3,null,null,null,null,null,null,null,null,null,null,null,3,null," ",null," "]
["Nepal",null,null,22,0,null,null,null,null,null,null,null,null,null,null,null,0]
["Brasilien",null,null,25,2,null,null,null,null,null,null,null,null,null,null,null,2,null,null,null,null," "]
["Ukraine",null,null,29,0,null,null,null,null,null,null,null,null,null,null,null,0]
["Øvrige ",null,null,140,7,null,null,null,null,null,null,null,null,null,null,null,7,null," "]
["I alt",null,null,{"$f":"SUM(D23:D28)","v":1310},{"$f":"SUM(E23:E28)","v":72},null,null,null,null,null,null,null,null,null,null,null,{"$f":"SUM(E29:P29)","v":72}]
[]
["(F)   Tabel 5: Opholdstilladelser til praktikanter fordelt på nationaliteter "]
[]
[]
[null,null,null,"2018\nI alt",2019,null,null,null,null,null,null,null,null,null,null,null,{"$f":"\"2019\ni alt \npr.\"&\" \"&Forside!Q1&\"\"","v":"2019\ni alt \npr. 31.01.2019"},null," "]
["Nationalitet",null,null,null,"jan","feb","mar","apr","maj","jun","jul","aug","sep","okt","nov","dec"]
["Ukraine",null,null,1686,149,null,null,null,null,null,null,null,null,null,null,null,{"$f":"SUM(E36:P36)","v":149}]
["USA",null,null,97,7,null,null,null,null,null,null,null,null,null,null,null,7]
["Kina",null,null,80,7,null,null,null,null,null,null,null,null,null,null,null,7,null,null," "]
["Indien",null,null,47,4,null,null,null,null,null,null,null,null,null,null,null,4]
["Brasilien",null,null,42,3,null,null,null,null,null,null,null,null,null,null,null,3]
["Øvrige ",null,null,298,22,null,null,null,null,null,null,null,null,null,null,null,22]
["I alt",null,null,{"$f":"SUM(D36:D41)","v":2250},{"$f":"SUM(E36:E41)","v":192},null,null,null,null,null,null,null,null,null,null,null,192]
[null,null,null,null,null,null,null,null,null,null,null,null,null,null,null," "]
[]
[null,null,null,null,null,null,null,null,null,null,null," ",null,null," "]

{"sheet":"EU-EØS - intro","index":29,"n_rows":5,"n_cols":1,"rows_kept":5,"cut":false,"hidden":false,"merged":[[4,0,5,14]]}
[]
[]
[]
[]
["EU/EØS (G)"]

{"sheet":"EU-EØS -hovedtal","index":30,"n_rows":39,"n_cols":15,"rows_kept":39,"cut":false,"hidden":false,"merged":[[25,0,26,14],[28,2,28,13],[37,0,37,14],[1,0,2,14],[4,2,4,13],[11,0,11,14],[12,0,13,14],[15,2,15,13],[24,0,24,14],[4,1,5,1],[15,1,16,1],[28,1,29,1]]}
[null,null,null,null,null,null,null,null," ",null,null,null," ",null," "]
["(G)   Tabel 1: EU/EØS opholdskort og registreringsbeviser opdelt på kategorier"]
[]
[]
["Periode","2018\nI alt",2019,null,null,null,null,null,null,null,null,null,null,null,2019]
["Kategori",null,"jan","feb","mar","apr","maj","jun","jul","aug","sep","okt","nov","dec",{"$f":"\"i alt\npr.\"&\" \"&Forside!Q1&\"\"","v":"i alt\npr. 31.01.2019"}]
["Lønarbejde ",20220,1540,null,null,null,null,null,null,null,null,null,null,null,{"$f":"SUM(C7:N7)","v":1540}]
["Uddannelse",9150,600,null,null,null,null,null,null,null,null,null,null,null,{"$f":"SUM(C8:N8)","v":600}]
["Personer med tilstrækkelige midler",4868,443,null,null,null,null,null,null,null,null,null,null,null,{"$f":"SUM(C9:N9)","v":443}]
["Øvrige",4837,384,null,null,null,null,null,null,null,null,null,null,null,{"$f":"SUM(C10:N10)","v":384}]
["I alt",{"$f":"SUM(B7:B10)","v":39075},2967,null,null,null,null,null,null,null,null,null,null,null,{"$f":"SUM(O7:O10)","v":2967}]
[]
["(G)   Tabel 2: Udstedte EU/EØS opholdskort og registreringsbeviser med henblik på lønarbejde fordelt på nationalitet"]
[]
[]
["Periode","2018\nI alt",2019,null,null,null,null,null,null,null,null,null,null,null,2019]
["Kategori",null,"jan","feb","mar","apr","maj","jun","jul","aug","sep","okt","nov","dec",{"$f":"\"i alt \npr.\"&\" \"&Forside!Q1&\"\"","v":"i alt \npr. 31.01.2019"}]
["Rumænien",4856,334,null,null,null,null,null,null,null,null,null,null,null,{"$f":"SUM(C18:N18)","v":334}]
["Polen",3819,295,null,null,null,null,null,null,null,null,null,null,null,295]
["Litauen",2284,112,null,null,null,null,null,null,null,null,null,null,null,112]
["Bulgarien",1450,124,null,null,null,null,null,null,null,null,null,null,null,124]
["Italien",1193,107,null,null,null,null,null,null,null,null,null,null,null,107]
["Øvrige ",6618,568,null,null,null,null,null,null,null,null,null,null,null,568]
["I alt",{"$f":"SUM(B18:B23)","v":20220},1540,null,null,null,null,null,null,null,null,null,null,null,{"$f":"SUM(O18:O23)","v":1540}]
[]
["(G)   Tabel 3: Udstedte EU/EØS registreringsbeviser med henblik på uddannelse fordelt på nationalitet"]
[]
[]
["Periode","2018\nI alt",2019,null,null,null,null,null,null,null,null,null,null,null,2019]
["Kategori",null,"jan","feb","mar","apr","maj","jun","jul","aug","sep","okt","nov","dec",{"$f":"\"i alt\npr.\"&\" \"&Forside!Q1&\"\"","v":"i alt\npr. 31.01.2019"}]
["Tyskland",1729,134,null,null,null,null,null,null,null,null,null,null,null,{"$f":"SUM(C31:N31)","v":134}]
["Spanien",829,45,null,null,null,null,null,null,null,null,null,null,null,45]
["Italien",783,72,null,null,null,null,null,null,null,null,null,null,null,72]
["Frankrig",711,73,null,null,null,null,null,null,null,null,null,null,null,73]
["Storbritannien",461,34,null,null,null,null,null,null,null,null,null,null,null,34]
["Øvrige ",4637,242,null,null,null,null,null,null,null,null,null,null,null,242]
["I alt",{"$f":"SUM(B31:B36)","v":9150},{"$f":"SUM(C31:C36)","v":600},null,null,null,null,null,null,null,null,null,null,null,{"$f":"SUM(O31:O36)","v":600}]
[]
[null,null,null,null,null," "]